Cogmind - Beta 13 X2 @@@ ROGUE MODE // 2024.01.05 @ 21:06:40 Player: Minty Result: Core destroyed Performance ------------- Evolutions (2) 1000 Regions Visited (6) 1200 Robots Destroyed (62) 310 Value Destroyed (1962) 1962 Prototype IDs (10) 200 Alien Tech Used (0) 0 Bonus (-1187) -1187 TOTAL SCORE: 3485 Bonus ------- Follower Combat Kills 141 Friendly Fire -1328 Cogmind --------- Core Integrity 0/550 Matter 216/300 Energy 100/100 System Corruption 2% Temperature Cool (0) Movement Hovering (46) Location -8/Storage Parts ------- > --- POWER (1) -------- (None) > --- PROPULSION (2) --- Aerolev Unit Aerolev Unit > --- UTILITY (4) ------ Small Storage Unit Improved Signal Interpreter > --- WEAPON (4) ------- (None) > --- INVENTORY (8) ---- Aerolev Unit Aerolev Unit Cooling System Improved Terrain Scanner Reactive Plating Long-range Tractor Beam Peak State ------------ > --- POWER ------------ Light Nuclear Core > --- PROPULSION ------- Aerolev Unit Aerolev Unit > --- UTILITY ---------- Small Storage Unit Improved Signal Interpreter Improved Light Armor Plating Hacking Suite > --- WEAPON ----------- Particle Gun Heavy Assault Rifle High-powered Shotgun > --- INVENTORY -------- Light Nuclear Core Improved Heat Sink Cooling System Improved Terrain Scanner Melee Analysis Suite Reactive Plating Long-range Tractor Beam Missile Launcher [Rating: 30] Favorites ----------- Power Light Ion Engine Engine Light Ion Engine Power Core Light Nuclear Core Propulsion Aluminum Leg Treads Armored Treads Leg Aluminum Leg Hover Unit Aerolev Unit Utility Small Storage Unit Device Cooling System Storage Small Storage Unit Processor Targeting Computer Hackware Hacking Suite Protection Reactive Plating Weapon Spread Laser Energy Gun Spread Laser Ballistic Gun Heavy Assault Rifle Launcher Missile Launcher Slashing Weapon Katana Build | -11 -10 -10 -9 -9 -8 -8 ------- Run | Yrd Mat Min Mat Min Mat Sto Slots Evolved 4 | . . . 2 . 2 . Power . | . . . . . . . Propulsion . | . . . . . . . Utility 2 | . . . 1 . 1 . Weapon 2 | . . . 1 . 1 . Parts Attached 48 | . 4 . 13 . 27 4 Power 8 | . . . 4 . 4 . Engine 6 | . . . 4 . 2 . Core 2 | . . . . . 2 . Reactor . | . . . . . . . Propulsion 8 | . . . 1 . 4 3 Treads 3 | . . . . . 3 . Leg 2 | . . . 1 . 1 . Wheel . | . . . . . . . Hover 3 | . . . . . . 3 Flight . | . . . . . . . Utility 15 | . 1 . 5 . 9 . Device 6 | . 1 . 4 . 1 . Storage . | . . . . . . . Processor 3 | . . . . . 3 . Hackware 3 | . . . 1 . 2 . Protection 3 | . . . . . 3 . Artifact . | . . . . . . . Weapon 17 | . 3 . 3 . 10 1 Energy Gun 9 | . 2 . 3 . 4 . Energy Cannon . | . . . . . . . Ballistic Gun 3 | . . . . . 3 . Ballistic Cannon . | . . . . . . . Launcher 3 | . 1 . . . 1 1 Special Weapon . | . . . . . . . Impact Weapon . | . . . . . . . Slashing Weapon 2 | . . . . . 2 . Piercing Weapon . | . . . . . . . Special Melee Weapon . | . . . . . . . Unidentified Prototypes 2 | . . . 1 . . 1 Parts Lost 21 | . . 1 1 2 12 5 Power 4 | . . . 1 1 1 1 Propulsion 3 | . . . . 1 2 . Utility 5 | . . 1 . . 2 2 Weapon 9 | . . . . . 7 2 Highest Loss Streak 7 | . . 1 1 2 7 4 To Critical Strikes . | . . . . . . . Average Slot Usage (%) 89 | . 88 91 96 96 87 66 Engine 9 | . 14 14 10 9 5 . Core 1 | . . . . . 2 8 Treads 3 | . . . . . 9 3 Leg 15 | . 28 28 22 20 2 . Device 4 | . 3 5 9 11 1 . Storage 11 | . 14 14 11 11 9 9 Processor 3 | . . . . . 6 9 Hackware 7 | . . . 10 11 13 3 Protection 2 | . . . . . 4 7 Energy Gun 21 | . 16 28 32 33 14 3 Ballistic Gun 4 | . 8 . . . 8 10 Slashing Weapon 3 | . . . . . 7 . Naked Turns . | . . . . . . . Heaviest Build 37 | 10 15 15 21 21 37 22 Greatest Support 40 | 20 20 20 26 20 40 40 Greatest Overweight (x) 5 | . . . 1 1 5 2 Average Overweight (x) . | . . . . . . . Largest Inventory Capacity 8 | . 8 8 8 8 8 8 Average Capacity 8 | . 8 8 8 8 8 8 Most Carried 8 | . 8 8 8 8 8 8 Average Carried 7 | . 7 8 7 8 7 7 Final Capacity 8 | 8 8 8 8 8 8 8 Final Carried 8 | 6 8 8 8 8 8 6 Class Distribution -------------------- 39% | Mutant 27% | Gunner 10% | Scavenger-Gunner 9% | Hacker-Tank 7% | Hacker-Mutant 3% | Scavenger-Tank Dominant Class ---------------- Mutant | -10/Materials Mutant | -10/Mines Gunner | -9/Materials Gunner | -9/Mines Scavenger-Gunner | -8/Materials Mutant | -8/Storage Resources | -11 -10 -10 -9 -9 -8 -8 ----------- Run | Yrd Mat Min Mat Min Mat Sto Matter Collected 810 | 200 70 16 126 . 372 26 Remotely . | . . . . . . . Salvage Created 1999 | . 317 175 456 107 671 273 Parts 118 | . 18 11 35 6 36 12 Haulers Intercepted 3 | . . . 3 . . . Recyclers Shooed 4 | . 1 2 . . 1 . Parts Field Recycled . | . . . . . . . Retrieved Matter . | . . . . . . . Parts Self-Destructed . | . . . . . . . Prevented . | . . . . . . . Kills | -11 -10 -10 -9 -9 -8 -8 ------- Run | Yrd Mat Min Mat Min Mat Sto Combat Hostiles Destroyed 46 | . 9 2 7 3 17 8 Melee 1 | . . . . . 1 . Guns 31 | . 4 2 7 3 13 2 AOE 14 | . 5 . . . 3 6 Classes Destroyed 11 | . 4 . 6 . 1 . Builder 3 | . 2 1 . . . . Tunneler 1 | . . . 1 . . . Hauler 3 | . . . 3 . . . Recycler 4 | . 1 1 1 . . 1 Operator 3 | . . . 1 . 1 1 Watcher 1 | . . . 1 . . . Swarmer 4 | . 2 . . . . 2 Grunt 30 | . 7 2 5 2 9 5 Brawler 2 | . . . 1 1 . . Sentry 8 | . . . 1 . 6 1 Hunter 2 | . . . . . 2 . Best Kill Streak 10 | . 10 2 3 3 5 7 Combat Bots Only 7 | . 7 2 3 3 5 6 Max Kills in Single Turn 7 | . 3 1 1 2 2 7 Gunslinging 1 | . . . . 1 . . Exploded 6 | . 3 . . . 2 6 Melee 1 | . . . . . 1 . Uniques/NPCs Destroyed 1 | . . 1 . . . . YI-UF0 (-10/Mines) Combat | -11 -10 -10 -9 -9 -8 -8 -------- Run | Yrd Mat Min Mat Min Mat Sto Hostile Shots Fired 274 | . 39 8 26 12 123 66 Missed 76 | . 14 4 8 3 23 24 Damage Taken 3136 | . 295 57 231 295 1529 729 Core 753 | . 85 23 40 44 395 166 Absorbed by Shields . | . . . . . . . Ignored by Resistances 25 | . . . . . 25 . Regen/Repaired (Parts) 237 | . . . . . 47 190 Core Remaining (%) 78 | 100 . 56 . 79 . . Volleys Fired 130 | . 17 22 20 5 46 20 Largest 3 | . 2 2 3 3 3 1 Hottest 195 | . 130 130 195 195 195 36 Shots Fired 272 | . 33 44 60 15 100 20 Gun 264 | . 28 44 60 15 98 19 Cannon . | . . . . . . . Launcher 8 | . 5 . . . 2 1 Special . | . . . . . . . Kinetic 67 | . 10 . . . 38 19 Thermal 197 | . 18 44 60 15 60 . Explosive 8 | . 5 . . . 2 1 Electromagnetic . | . . . . . . . Robot Hit Streak 17 | . 7 7 14 7 17 6 Robot Miss Streak 13 | . 5 10 13 7 13 4 Penetration Max . | . . . . . . . Secondary Targets 6 | . 1 . . 2 3 . Max Gunslinging Chain 2 | . 1 . . 2 1 . Shots Hit Robots 217 | . 22 40 44 13 83 15 Core Hits 248 | . 28 41 50 20 94 15 Critical Kills . | . . . . . . . Critical Parts Destroyed . | . . . . . . . Critical Strikes 1 | . . . . . 1 . Sever 1 | . . . . . 1 . Melee Attacks 12 | . . . . . 12 . Impact . | . . . . . . . Slashing 12 | . . . . . 12 . Piercing . | . . . . . . . Sneak Attacks . | . . . . . . . Combat Hostiles . | . . . . . . . Follow-up Attacks . | . . . . . . . Damage Inflicted 4199 | . 631 482 533 150 1471 932 Guns 2731 | . 219 470 533 150 1081 278 Cannons . | . . . . . . . Explosions 1300 | . 412 . . . 254 634 Melee 136 | . . . . . 136 . Ramming 32 | . . 12 . . . 20 Kinetic 686 | . 34 . . . 374 278 Thermal 2045 | . 185 470 533 150 707 . Explosive 1300 | . 412 . . . 254 634 Electromagnetic . | . . . . . . . Impact . | . . . . . . . Slashing 136 | . . . . . 136 . Piercing . | . . . . . . . Highest Corruption 2 | . . . . . . 2 Average Corruption 2 | . . . . . . 2 Corruption Purged . | . . . . . . . Corruption Blocked . | . . . . . . . Effects 1 | . . . . . . 1 Heat Flow Errors 1 | . . . . . . 1 Overload Shots . | . . . . . . . Overflow Damage 84 | . . . . . 19 65 Projectiles . | . . . . . . . Explosions 65 | . . . . . . 65 Melee 19 | . . . . . 19 . Knockbacks . | . . . . . . . Impact . | . . . . . . . Kinetic . | . . . . . . . Secondary . | . . . . . . . Self-Inflicted Damage 197 | . 30 . . . . 167 Shots 4 | . 1 . . . . 3 Rammed 5 | . . . . . . 5 Targets Rammed 8 | . . 3 . . . 5 Kicked 3 | . . 3 . . . . Crushed . | . . . . . . . Highest Temperature 498 | . 260 296 378 153 498 217 Average Temperature 116 | . 90 98 85 79 161 96 Received Heat Transfer 1152 | . 138 30 111 18 612 243 Effects 9 | . . . 1 . 8 . Shutdowns 3 | . . . 1 . 2 . Interference 2 | . . . . . 2 . Matter Decay 1 | . . . . . 1 . Damage (major) 3 | . . . . . 3 . Siege Activations . | . . . . . . . Robots Corrupted . | . . . . . . . Combat Hostiles . | . . . . . . . Parts Fried . | . . . . . . . Impact Corruptions . | . . . . . . . Robots Melted . | . . . . . . . Combat Hostiles . | . . . . . . . Parts Melted 1 | . . . 1 . . . Heat Transferred 2595 | . 255 585 680 190 885 . Parts Sabotaged . | . . . . . . . Parts Stolen . | . . . . . . . Parts Stripped . | . . . . . . . Power Chain Reactions . | . . . . . . . Missiles Intercepted . | . . . . . . . Alert | -11 -10 -10 -9 -9 -8 -8 ------- Run | Yrd Mat Min Mat Min Mat Sto Peak Influence 406 | . 406 207 291 148 298 348 Initial 157 | . . 157 2 78 49 97 Average 155 | . 197 120 172 130 156 152 Maximum Alert Level 2 | . 2 1 1 . 1 1 Low Security (%) 76 | . 40 85 61 100 85 85 Level 1 23 | . 54 14 38 . 14 14 Level 2 . | . 4 . . . . . Level 3 . | . . . . . . . Level 4 . | . . . . . . . Level 5 . | . . . . . . . High Security . | . . . . . . . Max Security . | . . . . . . . Squads Dispatched 16 | . 4 . 3 . 6 3 Investigation 6 | . 2 . 2 . 1 1 Extermination . | . . . . . . . Reinforcement 6 | . 2 . 1 . 2 1 Assault . | . . . . . . . Garrison 4 | . . . . . 3 1 Intercept . | . . . . . . . Searches Triggered . | . . . . . . . Construction Impeded . | . . . . . . . Haulers Reinforced . | . . . . . . . Active Scanning Responses . | . . . . . . . Cargo Convoy Interrupts . | . . . . . . . Stealth | -11 -10 -10 -9 -9 -8 -8 --------- Run | Yrd Mat Min Mat Min Mat Sto Distress Signals 2 | . 1 . . . 1 . Communications Jammed . | . . . . . . . Distress Signals . | . . . . . . . Times Spotted 85 | . 17 2 18 5 26 17 Peak Tracking Total 10 | . 6 2 4 3 4 10 Tactical Retreats 3 | . 3 . . . . . Traps | -11 -10 -10 -9 -9 -8 -8 ------- Run | Yrd Mat Min Mat Min Mat Sto Traps Triggered 1 | . . . . . . 1 Indirectly . | . . . . . . . Trap Hack Attempts . | . . . . . . . Triggered . | . . . . . . . Disarmed . | . . . . . . . Reprogrammed 1 | . 1 . . . . . Reused 1 | . 1 . . . . . Traps Extracted . | . . . . . . . Installed . | . . . . . . . Triggered 1 | . 1 . . . . . Machines | -11 -10 -10 -9 -9 -8 -8 ---------- Run | Yrd Mat Min Mat Min Mat Sto Machines Disabled 2 | . . . . . . 2 Max in Single Turn 2 | . . . . . . 2 Garrison Access 1 | . . . . . 1 . Machines Repaired . | . . . . . . . Machines Dismantled . | . . . . . . . Machines Sabotaged . | . . . . . . . Overloaded Fab Kills . | . . . . . . . Hacking | -11 -10 -10 -9 -9 -8 -8 --------- Run | Yrd Mat Min Mat Min Mat Sto Machines Accessed 15 | . 4 . 5 . 4 2 Terminals 11 | . 4 . 4 . 2 1 Fabricators . | . . . . . . . Repair Stations 2 | . . . . . 1 1 Recycling Units . | . . . . . . . Scanalyzers 1 | . . . 1 . . . Garrison Access 1 | . . . . . 1 . Total Hacks 63 | . 21 . 20 . 16 6 Successful 35 | . 9 . 14 . 9 3 Failed 28 | . 12 . 6 . 7 3 Catastrophic 5 | . 4 . . . 1 . Database Lockouts . | . . . . . . . Manual 28 | . 11 . 10 . 4 3 Terminals 47 | . 21 . 13 . 10 3 Fabricators . | . . . . . . . Repair Stations 6 | . . . . . 3 3 Recycling Units . | . . . . . . . Scanalyzers 7 | . . . 7 . . . Garrison Access 3 | . . . . . 3 . Terminal Hacks 15 | . 6 . 4 . 4 1 Robot Analysis 1 | . 1 . . . . . Prototype ID Bank 5 | . 2 . 2 . 1 . Branch Access Points 2 | . . . 1 . . 1 Alert Level 1 | . . . . . 1 . Locate Traps 1 | . 1 . . . . . Reprogram Traps 1 | . 1 . . . . . Dispatch Records 1 | . . . . . 1 . Maintenance Status 1 | . . . . . 1 . Investigation Status 1 | . . . 1 . . . Hauler Manifests 1 | . 1 . . . . . Fabricator Hacks . | . . . . . . . Repair Station Hacks 4 | . . . . . 2 2 Scan Component 2 | . . . . . 1 1 Repair 2 | . . . . . 1 1 Recycling Unit Hacks . | . . . . . . . Scanalyzer 7 | . . . 7 . . . Insert Component 3 | . . . 3 . . . Analyze 4 | . . . 4 . . . Garrison Access Hacks 1 | . . . . . 1 . Seal Access 1 | . . . . . 1 . Unauthorized Hacks 8 | . 3 . 3 . 2 . Terminals 8 | . 3 . 3 . 2 . Botnet 8 | . 3 . 3 . 2 . Fabricators . | . . . . . . . Repair Stations . | . . . . . . . Recycling Units . | . . . . . . . Scanalyzers . | . . . . . . . Garrison Access . | . . . . . . . Data Cores Recovered 1 | . . . 1 . . . Used . | . . . . . . . Hacking Detections 13 | . 4 . 5 . 3 1 Full Trace Events 7 | . 2 . 2 . 2 1 Feedback Events 1 | . . . . . 1 . Hackware Fried 1 | . . . . . 1 . Feedback Blocked . | . . . . . . . Robot Schematics Acquired . | . . . . . . . Robots Built . | . . . . . . . Authchips . | . . . . . . . Time . | . . . . . . . Total Robot Build Rating . | . . . . . . . Part Schematics Acquired 3 | . . . 3 . . . Parts Built . | . . . . . . . Authchips . | . . . . . . . Time . | . . . . . . . Total Part Build Rating . | . . . . . . . Parts Repaired 2 | . . . . . 1 1 Time 57 | . . . . . 19 38 Parts Recycled . | . . . . . . . Recycled Matter . | . . . . . . . Retrieved Matter . | . . . . . . . Retrieved Components . | . . . . . . . Parts Scanalyzed 3 | . . . 3 . . . Part Schematics Acquired 3 | . . . 3 . . . Parts Damaged . | . . . . . . . Bothacking | -11 -10 -10 -9 -9 -8 -8 ------------ Run | Yrd Mat Min Mat Min Mat Sto Used RIF Installer . | . . . . . . . Robots Hacked . | . . . . . . . Non-combat . | . . . . . . . Combat . | . . . . . . . Robot Hacks Applied . | . . . . . . . Relay Couplers Released . | . . . . . . . Fabnet Peak Effective % . | . . . . . . . Robots Rewired . | . . . . . . . Allies Hacked . | . . . . . . . Hacks Repelled . | . . . . . . . Allies | -11 -10 -10 -9 -9 -8 -8 -------- Run | Yrd Mat Min Mat Min Mat Sto Total Allies 3 | . . 3 . . . . Largest Group 3 | . . 3 3 . . . Highest-Rated Group 40 | . . 40 40 . . . Highest-Rated Ally 16 | . . 16 16 . . . Total Orders . | . . . . . . . Ally Attacks 41 | . . . 41 . . . Total Damage 515 | . . . 515 . . . Kills 6 | . . . 6 . . . Allies Corrupted . | . . . . . . . Allies Melted . | . . . . . . . Intel | -11 -10 -10 -9 -9 -8 -8 ------- Run | Yrd Mat Min Mat Min Mat Sto Robot Analysis Total 1 | . 1 . . . . . Derelict Logs Recovered 2 | . . 2 . . . . Drone Launches . | . . . . . . . Drone Recoveries . | . . . . . . . Exploration | -11 -10 -10 -9 -9 -8 -8 ------------- Run | Yrd Mat Min Mat Min Mat Sto Turns Passed 2630 | . 266 589 538 56 1047 134 Spaces Moved 1394 | 1 168 433 259 22 403 108 Core 9 | . . . . . 9 . Treads 311 | . . . . . 297 14 Legs 980 | 1 168 433 259 22 97 . Wheels . | . . . . . . . Hover 94 | . . . . . . 94 Flight . | . . . . . . . Fastest Speed 46 | 120 120 120 120 120 120 46 Average Speed 151 | 120 120 120 168 186 206 71 Slowest Speed 330 | 120 120 120 190 190 330 240 Overloaded Moves . | . . . . . . . Propulsion Burnouts . | . . . . . . . Robots Hopped . | . . . . . . . Cave-ins Triggered . | . . . . . . . Exploration Rate (%) 30 | 1 33 80 27 10 36 26 Regions Visited 6 Branch Regions 3 Pre-discovered Areas 1 | . . 1 . . . . Known Exits Taken 2 | . . . 1 . 1 . Unknown Exits Taken 4 | 1 1 1 . 1 . . Scrap Searched 1 | . . 1 . . . . Spaces Dug . | . . . . . . . Terrain Destroyed 64 | . 17 . . . 27 20 Melee . | . . . . . . . Projectile . | . . . . . . . AOE 64 | . 17 . . . 27 20 Terrain Rammed . | . . . . . . . Walls Destroyed . | . . . . . . . Machines Disabled . | . . . . . . . Actions | -11 -10 -10 -9 -9 -8 -8 --------- Run | Yrd Mat Min Mat Min Mat Sto Total 1666 | . 204 459 322 26 509 146 Wait 17 | . . . 13 . 3 1 Move 1388 | . 167 432 258 21 402 108 Hop . | . . . . . . . Pick Up 25 | . 7 1 6 . 9 2 Fast Attach 25 | . 3 . 5 . 14 3 Attach 11 | . . . 4 . 6 1 Detach 7 | . 2 . 1 . 4 . Swap 12 | . 1 . 4 . 7 . Drop 32 | . 7 1 11 . 6 7 Fire 130 | . 17 22 20 5 46 20 Melee 12 | . . . . . 12 . Ram 4 | . . . . . . 4 Kick 3 | . . 3 . . . . Crush . | . . . . . . . Escape Stasis . | . . . . . . . Rewire . | . . . . . . . Trap . | . . . . . . . Miscellaneous . | . . . . . . . Route ------- -11/Scrapyard -10/Materials -10/Mines -9/Materials (discovered 2 exits: *Min x2) -9/Mines -8/Materials (discovered 2 exits: *Fac / *Sto) -8/Storage (discovered 1 exit: Rec) History --------- Turn | Location | Event 1 | -11/Scrapyard | Discovered new exit (range 0) 1 | -11/Scrapyard | Entered Materials 148 | -10/Materials | Destroyed 7 combat bots 242 | -10/Materials | Discovered new exit (range 14) 267 | -10/Materials | Entered Mines 277 | -10/Mines | Discovered new exit (range 14) 278 | -10/Mines | Learned location of Recycling (-8) 303 | -10/Mines | Build established: Mutant 306 | -10/Mines | YI-UF0 nonchalantly dropped a Grenade Launcher on the ground 330 | -10/Mines | Murdered YI-UF0 330 | -10/Mines | Destroyed YI-UF0 380 | -10/Mines | Learned Materials garrison access intel 588 | -10/Mines | Assisted by bots powering up and referring to "LRC-V3" 856 | -10/Mines | Entered Materials 856 | -9/Materials | Accompanied by 3 allies 856 | -9/Materials | Evolved 2 slots: Utility x1, Weapon x1 1154 | -9/Materials | Build established: Gunner 1207 | -9/Materials | Identified exit to Mines 1394 | -9/Materials | Entered Mines 1419 | -9/Mines | Discovered new exit (range 9) 1430 | -9/Mines | Assembled infested the area 1450 | -9/Mines | Entered Materials 1450 | -8/Materials | Evolved 2 slots: Utility x1, Weapon x1 1451 | -8/Materials | Loaded intel: 1 garrison access location 1512 | -8/Materials | Lost 7 parts (1p2n1u3w) 1663 | -8/Materials | Repaired Lgt. Nuclear Core 2190 | -8/Materials | Core integrity fell below 50% 2273 | -8/Materials | Lost 3 parts (1n2w) 2319 | -8/Materials | Discovered new exit (range 14) 2353 | -8/Materials | Discovered new exit (range 8) 2385 | -8/Materials | Identified exit to Storage 2411 | -8/Materials | Identified exit to Factory 2421 | -8/Materials | Hacking Suite fried by hacking feedback 2497 | -8/Materials | Entered Storage 2499 | -8/Storage | Identified exit to Recycling 2542 | -8/Storage | Repaired Arm. Treads? 2576 | -8/Storage | Garrison activated, responded to threat 2612 | -8/Storage | Core integrity fell below 20% 2631 | -8/Storage | Core destroyed Last Messages --------------- 02611_ Hpw. Shotgun destroyed. 02611_ Compression Vault explodes. 02611_ Destroyed Flight Unit. 02611_ S-10 Pest destroyed. 02611_ Compression Vault explodes. 02611_ G-47 Trooper destroyed. 02611_ Destroyed Aluminum Leg. 02611_ G-47 Trooper destroyed. 02611_ Destroyed Lgt. Ion Engine. 02611_ G-47 Trooper destroyed. 02611_ Y-45 Defender destroyed. 02611_ O-16 Technician destroyed. 02611_ Missile Launcher destroyed. 02611_ Destroyed Missile Launcher. 02615_ Critical hit (Burn: +37). 02622_ Lgt. Nuclear Core destroyed. 02622_ Slammed into S-10 Pest. 02624_ S-10 Pest destroyed. 02631_ Slammed into U-05 Engineer. 02631_ Destabilizing: Core damaged (-27). Map ----- +----------------------------------------------------+ | ?????????????????????????????????????????????? | | ?????????????????????????????????????????????? | | ?????????????????????????????????????????????? | | ?????????????????????????????????????????????? | | ?????????????????????????????????????????????? | | ?????????????????????????????????????????????? | | ?????????????????????????????????????????????? | | ?????????????????????????????????????????????? | | ?????????????????????????????????????????????? | | ?????????????????????????????????????????????? | | ?????????????????????????????????????????????? | | ?????????????????????????????????????????????? | | ?????????????????????????????????????????????? | | ?????????????????????????????????????????????? | | ?????????????????????????????????????????????? | | ?????????????????????????????????????????????? | | ?????????????????????????????????????????????? | | ?????????????????????????????????????????????? | | ???????????###########???????????????????????? | | ???????????# #???????????????????????? | | ???????????# """"#?????????????+?????????? | | ??????????# """"#??????????? #?????????? | | ??????????# """"#?????????g #?????????? | | ?????????# """"#??????? #?????????? | | ?????????# ###### gk #?????????? | | ?????????# = sY/ @u #?????????? | | ?????????# =s*s ##########+##???????????? | | ?????????#####/###########?????????????????? | | #??#########?#%%[+ = #?????????????????? | | #### #?# = # #?????????????????? | | ## ### # !!=#?????????????????? | | # = = # #! #?????????????????? | | # % T # + #?????????????????? | | / = # # #?????????????????? | | # % * # # #?????????????????? | | / % # # #?????????????????? | | # # ##########???###???????????? | | ### ###+## ##############T###?????????? | | ##########?# ! =%! #?????????? | | ######## = [ #?????????? | | """ + ^ #?????????? | | """ ############+##+#####+####"="###?????????? | | """ #?????????? ?????#T!* ##"R"#???????????? | | #????????? !?????##"["##"""#???????????? | | " #???????? !??????# [=######???????????? | | " #???????" !??????# ==#????????????????? | | " #??????? ??????#####????????????????? | | ??????? ???????????????????????????? | | ####???????#######???????????????????????????? | | | +----------------------------------------------------+ Best States ------------- Heat Dissipation 50 Energy Generation 14 Energy Capacity 265 Matter Stores 300 Matter Capacity 300 Sight Range 20 Terrain Scan Density 10 Armor Coverage 150 Resistance: KI 20 Evasion (%) 55 Targeting Accuracy 5 Recoil Reduction 2 Offensive Hacking 20 Item Schematics ----------------- Cooling System | -9/Materials | Scanalyzed Imp. Terrain Scanner | -9/Materials | Scanalyzed Spread Laser | -9/Materials | Scanalyzed Robot Schematics ------------------ None Fabricated ------------ Nothing Alien Tech Used ----------------- None Achievements -------------- None Challenges ------------ None Game ------ Seed PhaseFlyingDoomcannon Manual? 0 Play Time 00:16:07 Cumulative 569.3 hours Start 2024.01.05 @ 20:50:26 End 2024.01.05 @ 21:06:40 Sessions 1 Manual Loads 0 Difficulty Rogue Special Mode None Game No. 464 Rogue 191 Adventurer 123 Explorer 150 Win Type - Total 25 Types 19/0/4/1/0/0/0/1/0 Lore% 77 Gallery% 90 Achievement% 75 Wizard Run 0 Options --------- ASCII 0 Keyboard 1 Movement Numpad Keybinds 0 Fullscreen 2 Font 18/X11Bold Map View 76x50 Zoom Use 0% Tactical HUD 1 Map Filters NONE Filters NONE Steam 1 RUN: faa0d5b0-0024-4141-b868-8501322d0ca2